bitfinex-derivatives/quotes_BNBF0:USTF0_20250406
["timestamp","ask_amount","ask_price","bid_price","bid_amount"]
[1743973180152,2.078,551.56,551.27,0.36279862]
[1743973182559,2.078,551.56,551.31,1.31159584]
[1743973182854,2.078,551.56,551.32,0.36276572]
[1743973184554,2.078,551.56,551.34,1.31159584]
[1743973184755,1.072,551.56,551.34,1.31159584]
[1743973185460,1.072,551.56,551.35,0.36274598]
[1743973189463,2.278,551.7,551.35,0.36274598]
[1743973194070,0.938,551.7,551.35,0.36274598]
[1743973197372,3.624,551.73,551.35,0.36274598]
[1743973199373,3.624,551.73,551.39,1.31159584]
[1743973199777,3.624,551.73,551.4,0.36271309]
[1743973206879,2.442,551.73,551.4,0.36271309]
[1743973209487,1.39263557,551.72,551.4,0.36271309]
[1743973209788,3.01219852,551.72,551.4,0.36271309]
[1743973211390,2.05236941,551.71,551.4,0.36271309]
[1743973211586,1.61956295,551.7,551.4,0.36271309]
[1743973211983,0.65969225,551.7,551.4,0.36271309]
[1743973212286,1.39263557,551.69,551.4,0.36271309]
[1743973212690,1.61956295,551.69,551.34,1.062]
[1743973212889,1.39263557,551.7,551.34,1.062]
[1743973213090,3.01219852,551.72,551.34,1.062]
[1743973214291,0.31550746,551.71,551.34,1.062]
[1743973214795,1.70814303,551.71,551.34,1.062]
[1743973216394,0.31550746,551.71,551.34,1.062]
[1743973217088,1.39263557,551.72,551.34,1.062]
[1743973217290,3.00630195,551.77,551.34,1.062]
[1743973218095,3.00630195,551.77,550.5,0.31551175]
[1743973218296,3.00630195,551.77,550.52,0.36329288]
[1743973218496,0.65732378,551.76,550.52,0.36329288]
[1743973218794,2.31463557,551.75,550.52,0.36329288]
[1743973218995,2.27094816,551.74,550.52,0.36329288]
[1743973219195,1.39263557,551.73,550.52,0.36329288]
[1743973219394,4.87958373,551.73,550.52,0.36329288]
[1743973219694,2.27094816,551.72,550.52,0.36329288]
[1743973220195,0.31567346,551.71,550.52,0.36329288]
[1743973220395,1.39263557,551.7,550.52,0.36329288]
[1743973220995,1.39263557,551.69,550.52,1.44429288]
[1743973221691,2.23863557,551.72,550.52,1.44429288]
[1743973222488,0.846,551.72,550.52,1.44429288]
[1743973223796,0.846,551.72,550.63,1.31159584]
[1743973226097,0.846,551.72,550.66,1.31159584]
[1743973227897,0.846,551.72,550.68,0.36318733]
[1743973231100,0.846,551.72,551.06,1.31159584]
[1743973231500,1.216,551.73,551.06,1.31159584]
[1743973232702,0.29310754,551.73,551.06,1.31159584]
[1743973232996,0.31520597,552.86,551.06,1.31159584]
[1743973234804,0.893,552.16,551.06,1.31159584]
[1743973235005,0.893,552.16,551.26,1.31159584]
[1743973235197,1.012,552.1,551.26,1.31159584]
[1743973237198,1.012,552.1,551.18,1.31159584]
[1743973237199,1.012,552.1,550.93,1.31159584]
[1743973237806,0.887,552.09,550.93,1.31159584]
[1743973238306,0.887,552.09,550.95,0.36300934]
[1743973238505,1.075,552.08,550.95,0.36300934]
[1743973245211,2.218,552.08,550.95,0.36300934]
[1743973250712,2.218,552.08,550.96,0.917]
[1743973250912,2.218,552.08,550.98,0.36298958]
[1743973252611,3.09,552.08,550.98,0.36298958]
[1743973253717,3.953,552.08,550.98,0.36298958]
[1743973255312,3.953,552.08,551.05,1.31159584]
[1743973255506,3.953,552.08,551.07,0.36293029]
[1743973257214,3.953,552.08,551.36,1.31159584]
[1743973257512,3.953,552.08,551.37,0.36273282]
[1743973258914,3.953,552.08,551.69,1.31159584]
[1743973259117,1.075,552.08,551.69,1.31159584]
[1743973259310,0.31499912,553.23,551.7,0.36251586]
[1743973259811,0.33248787,553.22,551.7,0.36251586]
[1743973260217,1.221,553.21,551.7,0.36251586]
[1743973260612,0.33257006,553.2,551.7,0.36251586]
[1743973261517,1.92101489,553.2,551.7,0.36251586]
[1743973261718,1.69898623,553.19,551.7,0.36251586]
[1743973261915,0.33257006,553.18,551.7,0.36251586]
[1743973262116,2.57869075,553.18,551.7,0.36251586]
[1743973262317,1.36641617,553.17,551.7,0.36251586]
[1743973262511,0.33257006,553.16,551.7,0.36251586]
[1743973262716,2.525,553.15,551.7,0.36251586]
[1743973262916,1.92101489,553.14,551.7,0.36251586]
[1743973263116,1.69898623,553.13,551.7,0.36251586]
[1743973263317,0.33257006,553.12,551.7,0.36251586]
[1743973263620,1.69898623,553.12,551.7,0.36251586]
[1743973263919,0.33257006,553.11,551.7,0.36251586]
[1743973264520,0.33265893,553.1,551.7,0.36251586]
[1743973264720,0.33265893,553.09,551.7,0.36251586]
[1743973264915,0.33265893,553.08,551.7,0.36251586]
[1743973265119,1.92110376,553.09,551.7,0.36251586]
[1743973265316,0.33265893,553.07,551.7,0.36251586]
[1743973265520,0.33265893,553.06,551.7,0.36251586]
[1743973266021,2.954861,553.07,551.7,0.36251586]
[1743973266218,3.28751437,553.06,551.7,0.36251586]
[1743973266420,1.9210982,553.05,551.7,0.36251586]
[1743973266625,3.28751437,553.04,551.7,0.36251586]
[1743973266921,1.9210982,553.03,551.7,0.36251586]
[1743973267119,1.9210982,553.02,551.7,0.36251586]
[1743973267324,0.33265337,553.01,551.7,0.36251586]
[1743973267720,1.36641617,553.02,551.7,0.36251586]
[1743973267922,1.36641617,553.12,551.7,0.36251586]
[1743973268125,0.33262044,553.11,551.7,0.36251586]
[1743973268324,0.31494923,553.01,551.7,0.36251586]
[1743973268725,0.33259353,553.0,551.7,0.36251586]
[1743973268920,0.33259353,553.11,551.7,0.36251586]
[1743973269125,0.33259353,553.1,551.7,0.36251586]
[1743973269427,0.33259353,553.09,551.7,0.36251586]
[1743973269825,1.3648743,553.08,551.7,0.36251586]
[1743973270324,1.3648743,553.07,551.7,0.36251586]
[1743973270725,3.61035146,553.07,551.7,0.36251586]
[1743973271024,3.61035146,553.06,551.7,0.36251586]
[1743973271226,2.57816647,553.05,551.7,0.36251586]
[1743973271425,0.65791162,553.04,551.7,0.36251586]
[1743973271623,0.33268931,553.03,551.7,0.36251586]
[1743973272029,1.3648743,553.02,551.7,0.36251586]
[1743973272222,2.28191196,553.01,551.71,1.075]
[1743973272522,2.58229221,553.0,551.71,1.075]
[1743973272727,3.94716651,552.99,551.71,1.075]
[1743973272928,2.58229221,552.98,551.71,1.075]
[1743973273128,4.30884978,552.97,551.72,0.36250271]
[1743973273328,2.94398202,552.96,551.72,0.36250271]
[1743973273628,4.30886286,552.95,551.72,0.36250271]
[1743973273829,2.9439951,552.94,551.72,0.36250271]
[1743973274030,2.94400164,552.93,551.72,0.36250271]
[1743973274228,2.94400819,552.92,551.72,0.36250271]
[1743973274428,2.94401473,552.91,551.72,0.36250271]
[1743973274624,4.31397318,552.9,551.72,0.36250271]
[1743973274826,2.58229221,552.89,551.72,0.36250271]
[1743973275029,2.58229221,552.88,551.72,0.36250271]
[1743973275331,3.95400192,552.87,551.72,0.36250271]
[1743973275625,2.58405001,552.86,551.72,0.36250271]
[1743973275825,2.2513607,552.85,551.72,0.36250271]
[1743973276130,3.29323159,552.84,551.72,0.36250271]
[1743973276330,2.2513607,552.83,551.72,0.36250271]
[1743973276531,1.5905009,552.82,551.72,0.36250271]
[1743973276732,0.6608598,552.83,551.72,0.36250271]
[1743973276733,1.36995191,552.81,551.72,0.36250271]
[1743973277132,3.62131261,552.81,551.72,0.36250271]
[1743973277329,3.62131261,552.8,551.72,0.36250271]
[1743973277535,3.9541095,552.79,551.72,0.36250271]
[1743973277734,2.2513607,552.78,551.72,0.36250271]
[1743973278037,1.92329195,552.77,551.72,0.36250271]
[1743973278335,3.95410366,552.76,551.72,0.36250271]
[1743973278534,2.58415175,552.75,551.72,0.36250271]
[1743973278737,3.62131261,552.74,551.72,0.36250271]
[1743973278930,2.58417166,552.73,551.72,0.36250271]
[1743973279130,2.2513607,552.72,551.72,0.36250271]
[1743973279335,3.62131261,552.71,551.72,0.36250271]
[1743973279534,2.26500332,552.7,551.72,0.36250271]
[1743973279937,1.36995191,552.69,551.72,0.36250271]
[1743973280138,3.63495523,552.69,551.72,0.36250271]
[1743973280338,3.63495523,552.68,551.72,0.36250271]
[1743973280539,2.26500332,552.67,551.72,0.36250271]
[1743973280837,1.60137481,552.67,551.72,0.36250271]
[1743973281035,1.36995191,552.66,551.72,0.36250271]
[1743973281437,1.36995191,552.68,551.72,0.36250271]
[1743973282038,0.31505187,552.69,551.72,0.36250271]
[1743973282637,1.36995191,552.83,551.72,0.36250271]
[1743973283139,2.30295191,552.83,551.72,0.36250271]
[1743973283336,0.933,552.83,551.72,0.36250271]
[1743973284039,2.255,552.83,551.72,0.36250271]
[1743973284440,2.98237647,552.82,551.72,0.36250271]
[1743973284755,1.36995191,552.82,551.72,0.36250271]
[1743973285542,2.98307924,552.82,551.72,0.36250271]
[1743973285752,1.36995191,552.82,551.72,0.36250271]
[1743973287052,2.98399988,552.82,551.72,0.36250271]
[1743973287253,1.36995191,552.82,551.72,0.36250271]
[1743973288253,1.106,552.82,551.72,0.36250271]
[1743973289451,2.49704482,552.82,551.72,0.36250271]
[1743973292163,3.81004482,552.82,551.72,0.36250271]
[1743973292360,0.31496633,552.81,551.72,0.36250271]
[1743973293061,2.60445425,552.81,551.72,0.36250271]
[1743973293258,2.06218221,552.8,551.72,0.36250271]
[1743973293459,1.61874035,552.79,551.72,0.36250271]
[1743973293761,3.68092256,552.79,551.72,0.36250271]
[1743973294060,2.28948792,552.78,551.72,0.36250271]
[1743973294257,1.61874035,552.78,551.72,0.36250271]
[1743973294659,3.01017499,552.81,551.72,0.36250271]
[1743973294856,1.61874035,552.8,551.72,0.36250271]
[1743973295061,3.01017499,552.81,551.72,0.36250271]
[1743973295260,0.31496918,552.8,551.72,0.36250271]
[1743973295762,0.864,552.79,551.72,0.36250271]
[1743973297063,0.864,552.79,551.75,1.31159584]
[1743973297262,0.864,552.79,551.77,0.36246986]
[1743973299866,0.864,552.79,551.94,1.31159584]
[1743973300566,1.016,552.78,551.96,0.36234509]
[1743973300962,1.016,552.78,551.97,1.074]
[1743973301162,1.016,552.78,551.99,0.3623254]
[1743973304870,1.152,552.77,551.99,0.3623254]
[1743973309277,1.152,552.77,552.08,1.31159584]
[1743973309968,1.067,552.76,552.09,0.36225977]
[1743973320685,1.36,552.75,552.09,0.36225977]
[1743973326788,1.36,552.75,552.1,1.073]
[1743973330386,1.236,552.74,552.1,1.073]
[1743973331692,1.236,552.74,552.11,0.36224665]
[1743973332190,2.471,552.74,552.11,0.36224665]
[1743973332791,2.471,552.74,552.18,1.31159584]
[1743973332986,2.471,552.74,552.19,0.36219417]
[1743973335895,2.471,552.74,552.22,1.31159584]
[1743973336091,2.471,552.74,552.23,0.36216793]
[1743973336595,1.313,552.82,552.23,0.36216793]
[1743973337193,2.26346723,554.86,552.23,0.36216793]
[1743973337393,0.36052275,554.75,552.23,0.36216793]
[1743973337597,2.59540016,554.74,552.23,0.36216793]
[1743973337897,0.36054225,554.72,552.23,0.36216793]
[1743973338096,2.59540229,554.71,552.23,0.36216793]
[1743973338298,3.9709486,554.7,552.56,1.31159584]
[1743973338498,0.36056825,554.68,552.66,0.36188615]
[1743973338798,3.9709486,554.67,552.66,0.36188615]
[1743973338996,0.36058775,554.65,552.66,0.36188615]
[1743973339200,2.59540229,554.64,552.66,0.36188615]
[1743973339403,0.36060726,554.62,552.66,0.36188615]
[1743973339600,3.63901354,554.61,552.66,0.36188615]
[1743973339793,2.95602374,554.6,552.66,0.36188615]
[1743973339996,2.95603024,554.59,552.66,0.36188615]
[1743973340198,2.95603675,554.58,552.66,0.36188615]
[1743973340493,2.95604325,554.57,552.66,0.36188615]
[1743973340700,2.95604975,554.56,552.66,0.36188615]
[1743973340900,2.95605626,554.55,552.66,0.36188615]
[1743973341096,2.59540348,554.54,552.66,0.36188615]
[1743973341401,2.59540348,554.53,552.66,0.36188615]
[1743973341600,2.95607577,554.52,552.66,0.36188615]
[1743973341800,2.59540348,554.51,552.66,0.36188615]
[1743973342000,3.97094979,554.5,552.66,0.36188615]
[1743973342198,2.26346723,554.49,552.66,0.36188615]
[1743973342401,1.93238511,554.48,552.66,0.36188615]
[1743973342601,3.97094979,554.47,552.66,0.36188615]
[1743973342902,2.59540348,554.46,552.66,0.36188615]
[1743973343103,3.63901354,554.45,552.66,0.36188615]
[1743973343304,2.59540348,554.44,552.66,0.36188615]
[1743973343503,2.59540348,554.43,552.66,0.36188615]
[1743973343699,3.63901354,554.42,552.66,0.36188615]
[1743973343898,2.26346723,554.41,552.66,0.36188615]
[1743973344104,2.97599517,554.4,552.66,0.36188615]
[1743973344304,2.26346723,554.39,552.66,0.36188615]
[1743973344503,1.60044886,554.38,552.66,0.36188615]
[1743973344699,1.37554631,554.37,552.66,0.36188615]
[1743973345198,1.37554631,554.36,552.66,0.36188615]
[1743973345507,2.97599517,554.36,552.66,0.36188615]
[1743973345699,1.91464596,554.35,552.66,0.36188615]
[1743973345899,2.97858169,554.34,552.66,0.36188615]
[1743973346198,1.60303538,554.33,552.66,0.36188615]
[1743973346498,1.37554631,554.34,552.66,0.36188615]
[1743973347005,2.29579178,554.33,552.66,0.36188615]
[1743973347197,2.59892673,554.32,552.66,0.36188615]
[1743973347397,3.97447304,554.31,552.66,0.36188615]
[1743973347599,2.59892673,554.3,552.66,0.36188615]
[1743973347798,2.59892673,554.29,552.66,0.36188615]
[1743973347997,2.26696624,554.28,552.66,0.36188615]
[1743973348203,3.9744486,554.27,552.66,0.36188615]
[1743973348400,2.59890229,554.26,552.66,0.36188615]
[1743973348704,2.59890229,554.25,552.66,0.36188615]
[1743973349004,3.9744486,554.24,552.66,0.36188615]
[1743973349205,2.26696624,554.23,552.66,0.36188615]
[1743973349398,0.33193605,554.22,552.66,0.36188615]
[1743973349598,0.99586691,554.22,552.66,0.36188615]
[1743973349901,3.31051774,554.21,552.66,0.36188615]
[1743973350103,2.59890229,554.2,552.66,0.36188615]
[1743973350304,3.9744486,554.19,552.66,0.36188615]
[1743973350499,2.59890229,554.18,552.66,0.36188615]
[1743973350700,2.95980237,554.17,552.66,0.36188615]
[1743973350899,2.95980888,554.16,552.66,0.36188615]
[1743973351200,2.59890229,554.15,552.66,0.36188615]
[1743973351407,2.59890229,554.14,552.66,0.36188615]
[1743973351607,3.9744486,554.13,552.66,0.36188615]
[1743973351805,2.59890229,554.12,552.66,0.36188615]
[1743973352003,2.26696624,554.11,552.66,0.36188615]
[1743973352203,1.93497143,554.1,552.66,0.36188615]
[1743973352405,2.59890229,554.09,552.66,0.36188615]
[1743973352604,2.59890229,554.08,552.66,0.36188615]
[1743973352804,2.26696624,554.07,552.66,0.36188615]
[1743973353010,3.64251255,554.06,552.66,0.36188615]
[1743973353201,2.26696624,554.05,552.66,0.36188615]
[1743973353401,2.97858169,554.04,552.66,0.36188615]
[1743973353605,2.26696624,554.03,552.66,0.36188615]
[1743973353802,1.60303538,554.02,552.66,0.36188615]
[1743973354006,1.60303538,554.01,552.66,0.36188615]
[1743973354307,3.31065075,554.0,552.66,0.36188615]
[1743973354606,2.5990353,553.99,552.66,0.36188615]
[1743973354802,3.97458161,553.98,552.66,0.36188615]
[1743973355008,2.5990353,553.97,552.66,0.36188615]
[1743973355202,2.5990353,553.96,552.66,0.36188615]
[1743973355401,3.97458161,553.95,552.66,0.36188615]
[1743973355605,2.5990353,553.94,552.66,0.36188615]
[1743973355806,3.97458161,553.93,552.66,0.36188615]
[1743973356006,2.5990353,553.92,552.66,0.36188615]
[1743973356207,3.97458161,553.91,552.66,0.36188615]
[1743973356407,2.26696624,553.9,552.66,0.36188615]
[1743973356608,1.60303538,553.89,552.66,0.36188615]
[1743973356807,1.60303538,553.88,552.66,0.36188615]
[1743973357004,2.97858169,553.87,552.66,0.36188615]
[1743973357203,2.27528729,553.86,552.66,0.36188615]
[1743973357611,1.37554631,553.85,552.66,0.36188615]
[1743973357808,3.6508336,553.85,552.66,0.36188615]
[1743973358009,3.51328729,553.84,552.66,0.36188615]
[1743973358206,2.27665808,553.83,552.66,0.36188615]
[1743973358708,0.33214618,553.82,552.66,0.36188615]
[1743973358910,2.03947717,553.82,552.66,0.36188615]
[1743973359109,2.98827353,553.81,552.66,0.36188615]
[1743973359305,0.66393086,553.8,552.66,0.36188615]
[1743973359506,1.37554631,553.79,552.66,0.36188615]
[1743973359707,3.65220439,553.79,552.66,1.43388615]
[1743973359905,3.65684614,553.78,552.66,1.43388615]
[1743973360111,1.61272722,553.77,552.66,1.43388615]
[1743973360608,0.66863744,553.82,552.66,1.43388615]
[1743973360805,1.027,553.76,552.66,1.43388615]
[1743973361405,0.31445262,553.75,552.66,1.43388615]
[1743973361609,1.37554631,553.74,552.66,1.43388615]
[1743973362105,1.61272722,553.73,552.66,1.43388615]
[1743973362306,1.61272722,553.72,552.66,1.43388615]
[1743973362608,1.37554631,553.71,552.66,1.43388615]
[1743973362812,3.65691097,553.71,552.66,1.43388615]
[1743973363009,2.28136466,553.7,552.66,1.43388615]
[1743973363210,1.37554631,553.69,552.66,1.43388615]
[1743973363405,3.65691097,553.69,552.66,1.43388615]
[1743973363608,2.2817794,553.68,552.66,1.43388615]
[1743973364110,1.37554631,553.67,552.66,1.43388615]
[1743973364312,3.97181243,553.67,552.66,1.43388615]
[1743973364611,2.98827353,553.66,552.66,1.43388615]
[1743973364809,1.61272722,553.65,552.66,1.43388615]
[1743973365004,1.37554631,553.66,552.66,1.43388615]
[1743973365811,0.31448672,553.67,552.66,1.43388615]
[1743973366208,2.28530713,553.69,552.66,1.43388615]
[1743973366412,2.2862614,553.68,552.66,1.43388615]
[1743973367013,2.53041175,553.67,552.66,1.43388615]
[1743973367214,2.28609705,553.66,552.66,1.43388615]
[1743973367415,2.2848106,553.65,552.66,1.43388615]
[1743973367614,2.61710935,553.64,552.66,1.43388615]
[1743973367915,2.61710935,553.63,552.66,1.43388615]
[1743973368111,2.2848106,553.62,552.66,1.43388615]
[1743973368316,2.61714481,553.61,552.66,1.43388615]
[1743973368510,2.61714481,553.6,552.66,1.43388615]
[1743973368715,2.61714481,553.59,552.66,1.43388615]
[1743973368910,2.61714481,553.58,552.66,1.43388615]
[1743973369111,2.61714481,553.57,552.66,1.43388615]
[1743973369312,2.61714481,553.56,552.66,1.43388615]
[1743973369617,2.2848106,553.55,552.66,1.43388615]
[1743973369816,3.32340541,553.54,552.66,1.43388615]
[1743973370012,1.00170412,553.53,552.66,1.43388615]
[1743973370215,0.33237631,553.52,552.66,1.43388615]
[1743973370417,0.66932781,553.52,552.66,1.43388615]
[1743973370616,1.37554631,553.52,552.66,1.43388615]
[1743973370816,3.66035691,553.52,552.66,1.43388615]
[1743973371016,3.66035691,553.51,552.66,1.43388615]
[1743973371317,3.66035691,553.5,552.66,1.43388615]
[1743973371612,2.2848106,553.49,552.66,1.43388615]
[1743973371817,1.61548279,553.49,552.66,1.43388615]
[1743973372220,1.37554631,553.55,552.66,1.43388615]
[1743973372821,1.37554631,553.54,552.66,1.43388615]
[1743973373320,1.37554631,553.53,552.66,1.43388615]
[1743973373719,1.37554631,553.52,552.66,1.43388615]
[1743973374316,2.9910291,553.51,552.66,1.43388615]
[1743973374516,2.28328455,553.5,552.66,1.43388615]
[1743973374722,1.61548279,553.49,552.66,1.43388615]
[1743973374920,1.37554631,553.49,552.66,1.43388615]
[1743973375121,3.65458432,553.49,552.66,1.43388615]
[1743973375316,1.92591658,553.48,552.66,1.43388615]
[1743973375518,2.98695769,553.47,552.66,1.43388615]
[1743973375719,1.61141138,553.46,552.66,1.43388615]
[1743973376217,1.37554631,553.47,552.66,1.43388615]
[1743973376924,0.31455921,553.48,552.66,1.43388615]
[1743973377225,2.27897085,553.62,552.66,1.43388615]
[1743973377723,1.37554631,553.61,552.66,1.43388615]
[1743973377926,3.65460187,553.61,552.66,1.43388615]
[1743973378126,3.65460187,553.6,552.66,1.43388615]
[1743973378324,2.27905556,553.59,552.66,1.43388615]
[1743973378823,1.37554631,553.58,552.66,1.43388615]
[1743973379025,3.65460187,553.58,552.66,1.43388615]
[1743973379223,3.65460187,553.57,552.66,1.43388615]
[1743973379420,2.27905556,553.56,552.66,1.43388615]
[1743973379826,1.37554631,553.55,552.66,1.43388615]
[1743973380028,3.65460187,553.55,552.66,1.43388615]
[1743973380225,2.27905556,553.54,552.66,1.43388615]
[1743973380425,3.65460187,553.54,552.66,1.43388615]
[1743973380626,2.27905556,553.53,552.66,1.43388615]
[1743973380823,2.27948182,553.52,552.66,1.43388615]
[1743973381026,3.65497548,553.51,552.66,1.43388615]
[1743973381324,2.27945255,553.5,552.66,1.43388615]
[1743973381528,1.37554631,553.49,552.66,1.43388615]
[1743973381727,3.65500597,553.49,552.66,1.43388615]
[1743973382029,2.27954983,553.48,552.66,1.43388615]
[1743973382228,1.37554631,553.47,552.66,1.43388615]
[1743973382827,0.31457343,553.48,552.66,1.43388615]
[1743973383629,1.37554631,553.47,552.66,1.43388615]
[1743973384330,1.37554631,553.57,552.66,1.43388615]
[1743973384731,1.61224273,553.66,552.66,1.43388615]
[1743973385326,0.31447393,553.65,552.66,1.43388615]
[1743973385732,0.31447393,553.65,552.66,0.36188615]
[1743973386234,1.37554631,553.65,552.66,0.36188615]
[1743973386932,0.914,553.67,552.66,0.36188615]
[1743973388135,2.28954631,553.67,552.66,0.36188615]
[1743973389234,1.6119931,553.66,552.66,0.36188615]
[1743973389426,2.27983082,553.66,552.66,0.36188615]
[1743973389631,1.61193056,553.65,552.66,0.36188615]
[1743973390033,1.37554631,553.64,552.66,0.36188615]
[1743973390431,1.69006146,553.64,552.66,0.36188615]
[1743973390631,1.37554631,553.63,552.66,0.36188615]
[1743973390831,3.65536477,553.63,552.66,0.36188615]
[1743973391035,2.27981846,553.62,552.66,0.36188615]
[1743973391237,1.61162078,553.61,552.66,0.36188615]
[1743973391439,1.37554631,553.61,552.66,0.36188615]
[1743973391638,3.65505499,553.61,552.66,0.36188615]
[1743973391836,2.27950868,553.6,552.66,0.36188615]
[1743973392036,1.37554631,553.59,552.66,0.36188615]
[1743973392237,2.98716709,553.59,552.66,0.36188615]
[1743973392533,2.98716709,553.58,552.66,0.36188615]
[1743973392735,1.61162078,553.57,552.66,0.36188615]
[1743973392934,1.37554631,553.58,552.66,0.36188615]
[1743973393139,2.28016336,553.63,552.66,0.36188615]
[1743973393340,1.92667384,553.63,552.66,0.36188615]
[1743973393538,1.61218428,553.62,552.66,0.36188615]
[1743973393937,0.31448956,553.63,552.66,0.36188615]
[1743973394137,1.37554631,553.62,552.66,0.36188615]
[1743973397842,2.04356061,553.62,552.66,0.36188615]
[1743973398045,1.61218428,553.61,552.66,0.36188615]
[1743973398539,1.37554631,553.62,552.66,0.36188615]
[1743973398745,2.04373087,553.62,552.66,0.36188615]
[1743973398941,1.61275529,553.61,552.66,0.36188615]
[1743973399143,2.28091612,553.61,552.66,0.36188615]
[1743973399544,1.37554631,553.6,552.66,0.36188615]
[1743973399742,1.61275529,553.59,552.66,0.36188615]
[1743973399941,1.61275529,553.58,552.66,0.36188615]
[1743973400141,1.61275529,553.57,552.66,0.36188615]
[1743973400340,1.61275529,553.56,552.66,0.36188615]
[1743973400646,1.37554631,553.55,552.66,0.36188615]
[1743973401142,1.37554631,553.54,552.66,0.36188615]
[1743973401340,3.65609929,553.54,552.66,0.36188615]
[1743973401545,2.28055298,553.53,552.66,0.36188615]
[1743973401946,1.37554631,553.52,552.66,0.36188615]
[1743973402146,1.37554631,553.51,552.66,0.36188615]
[1743973402447,2.9883016,553.5,552.66,0.36188615]
[1743973402641,2.28055298,553.49,552.66,0.36188615]
[1743973402844,1.6128053,553.48,552.66,0.36188615]
[1743973403043,2.28060299,553.49,552.66,0.36188615]
[1743973403242,1.37554631,553.48,552.66,0.36188615]
[1743973403447,3.6561493,553.48,552.66,0.36188615]
[1743973403644,2.59515367,553.47,552.66,0.36188615]
[1743973403845,1.92735598,553.47,552.66,0.36188615]
[1743973404042,1.6128053,553.46,552.66,0.36188615]
[1743973404242,2.98835161,553.46,552.66,0.36188615]
[1743973404448,1.37554631,553.46,552.66,0.36188615]
[1743973405248,1.046,553.57,552.66,0.36188615]
[1743973407952,2.06,553.57,552.66,0.36188615]
[1743973408252,1.61818399,553.56,552.66,0.36188615]
[1743973408750,2.06,553.57,552.66,0.36188615]
[1743973409150,1.61896381,553.56,552.66,0.36188615]
[1743973409351,2.06,553.57,552.66,0.36188615]
[1743973412451,2.29224984,553.56,552.66,0.36188615]
[1743973412653,1.39290687,553.55,552.66,0.36188615]
[1743973412847,3.68515671,553.55,552.66,0.36188615]
[1743973413046,1.62082077,553.54,552.66,0.36188615]
[1743973413451,2.29226263,553.54,552.66,0.36188615]
[1743973413751,1.62082077,553.53,552.66,0.36188615]
[1743973413951,1.39290687,553.53,552.66,0.36188615]
[1743973414452,2.06432256,553.53,552.66,0.36188615]
[1743973414752,3.3282769,553.52,552.66,0.36188615]
[1743973414953,2.29118857,553.51,552.66,0.36188615]
[1743973415554,1.39290687,553.5,552.66,0.36188615]
[1743973415754,3.68409544,553.5,552.66,0.36188615]
[1743973416055,2.29118857,553.49,552.65,1.072]
[1743973416554,1.39290687,553.48,552.65,1.072]
[1743973416754,3.68409544,553.48,552.65,1.072]
[1743973416955,2.29118857,553.47,552.65,1.072]
[1743973417155,1.61999135,553.46,552.65,1.072]
[1743973417355,1.39290687,553.46,552.65,1.072]
[1743973417655,1.39290687,553.45,552.65,1.072]
[1743973417858,1.39290687,553.44,552.65,1.072]
[1743973418052,3.68409544,553.44,552.65,1.072]
[1743973418253,2.29118857,553.43,552.65,1.072]
[1743973418557,1.39290687,553.42,552.65,1.072]
[1743973418754,3.01289822,553.42,552.65,1.072]
[1743973418956,1.39290687,553.42,552.65,1.072]
[1743973419153,1.39290687,553.51,552.65,1.072]
[1743973419657,1.39290687,553.5,552.65,1.072]
[1743973420456,1.39290687,553.49,552.65,1.072]
[1743973420656,3.32633263,553.49,552.65,1.072]
[1743973420854,1.61886371,553.48,552.65,1.072]
[1743973421052,1.70746892,553.49,552.65,1.072]
[1743973421255,2.21190687,553.48,552.65,1.072]
[1743973421651,0.819,553.48,552.65,1.072]
[1743973425264,1.163,553.47,552.65,1.072]
[1743973430364,1.163,553.47,552.65,2.38359584]
[1743973430558,1.029,553.46,552.65,2.38359584]
[1743973432365,1.056,553.45,552.88,1.31159584]
[1743973434964,1.056,553.45,552.51,2.73322131]
[1743973434965,1.056,553.45,552.69,1.31159584]
[1743973435568,1.056,553.45,552.7,1.072]
[1743973446076,2.286,553.45,552.7,1.072]
[1743973449078,3.416,553.45,552.7,1.072]
[1743973450778,3.416,553.45,552.41,1.31159584]
[1743973450974,3.416,553.45,552.43,0.36203681]
[1743973451375,4.34,553.45,552.43,0.36203681]
[1743973453179,5.482,553.45,552.43,1.43503681]
[1743973454277,5.482,553.45,552.57,1.31159584]
[1743973454583,5.482,553.45,552.59,0.36193199]
[1743973458491,5.482,553.45,552.71,1.31159584]
[1743973458684,5.482,553.45,552.72,0.36184686]
[1743973472887,5.482,553.45,552.8,1.31159584]
[1743973473094,5.482,553.45,552.81,0.36178795]
[1743973475095,5.482,553.45,552.86,1.31159584]
[1743973475296,5.482,553.45,552.87,0.36174869]
[1743973477603,5.482,553.45,552.94,1.31159584]
[1743973478302,5.482,553.45,552.95,0.36169635]
[1743973480903,5.482,553.45,552.96,1.31159584]
[1743973481302,5.482,553.45,552.97,0.929]